fUST/lending_fUST_20240521
["ID","MTS","AMOUNT","RATE_DAILY","PERIOD"]
[327577282,1716240662132,-500.0,0.00044109,2]
[327577283,1716240662141,-500.0,0.00044109,41]
[327577284,1716240662151,-1089.74,0.00044109,41]
[327577285,1716240662161,-212.12770649,0.00044111,30]
[327577286,1716240662170,-500.0,0.00044136,60]
[327577287,1716240662180,-440.63488133,0.00044161,30]
[327577288,1716240662189,-500.0,0.00044164,60]
[327577289,1716240662199,-490.0,0.0004417,15]
[327577290,1716240662208,-200.0,0.0004417,35]
[327577291,1716240662217,-158.0,0.0004417,35]
[327577292,1716240662227,-490.0,0.0004418,15]
[327577293,1716240662236,-200.0,0.0004418,35]
[327577294,1716240662246,-158.0,0.0004418,35]
[327577295,1716240662255,-490.0,0.0004419,15]
[327577296,1716240662268,-281.26,0.0004419,35]
[327577297,1716240662277,-200.0,0.0004419,35]
[327577298,1716240662287,-158.0,0.0004419,35]
[327577299,1716240662296,-500.0,0.00044191,60]
[327577300,1716240662307,-500.0,0.00044219,60]
[327577301,1716240662316,-500.0,0.00044246,60]
[327577302,1716240662325,-184.0,0.0004427,35]
[327577303,1716240662335,-150.5,0.0004427,35]
[327577304,1716240662344,-500.0,0.00044273,60]
[327577305,1716240662357,-152.7044776,0.00044274,30]
[327577306,1716240662366,-184.0,0.0004428,35]
[327577307,1716240662375,-150.5,0.0004428,35]
[327577308,1716240662385,-184.0,0.0004429,35]
[327577309,1716240662394,-150.5,0.0004429,35]
[327577310,1716240662477,-440.63488133,0.00044291,30]
[327577311,1716240662495,-151.40188392,0.00044293,30]
[327577312,1716240662504,-500.0,0.00044301,60]
[327577313,1716240662514,-440.63488133,0.00044308,30]
[327577314,1716240662524,-440.63488133,0.0004431,30]
[327577315,1716240662533,-500.0,0.00044328,60]
[327577316,1716240662543,-151.40188392,0.00044353,30]
[327577317,1716240662553,-500.0,0.00044356,60]
[327577318,1716240662563,-152.7044776,0.00044359,30]
[327577319,1716240662573,-15412.29641878,0.00044383,3]
[327577320,1716240662583,-500.0,0.00044383,7]
[327577321,1716240662593,-500.0,0.00044383,42]
[327577322,1716240662602,-500.0,0.00044383,42]
[327577323,1716240662612,-500.0,0.00044383,42]
[327577324,1716240662621,-500.0,0.00044383,42]
[327577325,1716240662631,-500.0,0.00044383,42]
[327577326,1716240662641,-500.0,0.00044383,42]
[327577327,1716240662650,-500.0,0.00044383,42]
[327577328,1716240662660,-500.0,0.00044383,42]
[327577329,1716240662669,-500.0,0.00044383,42]
[327577330,1716240662678,-1000.72,0.00044383,42]
[327577331,1716240662687,-500.0,0.00044383,42]
[327577332,1716240662697,-500.0,0.00044383,42]
[327577333,1716240662707,-500.0,0.00044383,42]
[327577334,1716240662716,-500.0,0.00044383,42]
[327577335,1716240662728,-603.32382379,0.00044383,42]
[327577336,1716240662738,-823.23,0.00044383,42]
[327577337,1716240662747,-500.0,0.00044383,42]
[327577338,1716240662757,-500.0,0.00044383,42]
[327577339,1716240662766,-500.0,0.00044383,42]
[327577340,1716240662776,-500.0,0.00044383,42]
[327577341,1716240662786,-532.7484846,0.00044383,42]
[327577342,1716240662796,-608.18,0.00044383,42]
[327577343,1716240662805,-830.37,0.00044383,42]
[327577344,1716240662814,-500.0,0.00044383,42]
[327577345,1716240662824,-884.54,0.00044383,42]
[327577346,1716240662834,-500.0,0.00044383,42]
[327577347,1716240662844,-500.0,0.00044383,42]
[327577348,1716240662855,-500.0,0.00044383,42]
[327577349,1716240662864,-503.58246897,0.00044383,42]
[327577350,1716240662874,-500.0,0.00044383,42]
[327577351,1716240662884,-500.0,0.00044383,42]
[327577352,1716240662894,-500.0,0.00044383,42]
[327577353,1716240662904,-500.0,0.00044383,2]
[327577354,1716240662913,-500.0,0.00044383,42]
[327577355,1716240662923,-551.43734135,0.00044383,7]
[327577356,1716240662933,-500.0,0.00044383,42]
[327577357,1716240662942,-500.0,0.00044383,42]
[327577358,1716240662952,-500.0,0.00044383,42]
[327577359,1716240662962,-500.0,0.00044383,42]
[327577360,1716240662972,-500.0,0.00044383,42]
[327577361,1716240662982,-3512.05,0.00044383,7]
[327577362,1716240662994,-500.0,0.00044383,42]
[327577363,1716240663003,-500.0,0.00044383,42]
[327577364,1716240663015,-286.286796,0.00044383,7]
[327577365,1716240663027,-286.286796,0.00044383,7]
[327577366,1716240663038,-533.21,0.00044383,42]
[327577367,1716240663052,-286.286796,0.00044383,7]
[327577368,1716240663065,-500.0,0.00044383,42]
[327577369,1716240663076,-286.286796,0.00044383,7]
[327577370,1716240663086,-500.0,0.00044383,7]
[327577371,1716240663095,-500.0,0.00044383,42]
[327577372,1716240663105,-500.0,0.00044383,42]
[327577373,1716240663115,-500.0,0.00044383,42]
[327577374,1716240663125,-500.0,0.00044383,42]
[327577375,1716240663134,-654.58,0.00044383,42]
[327577376,1716240663144,-500.0,0.00044383,42]
[327577377,1716240663153,-500.0,0.00044383,42]
[327577378,1716240663164,-540.81448696,0.00044383,42]
[327577379,1716240663173,-500.0,0.00044383,42]
[327577380,1716240663183,-501.77523209,0.00044383,42]
[327577381,1716240663194,-1214.46,0.00044383,42]
[327577382,1716240663204,-500.0,0.00044383,42]
[327577383,1716240663214,-500.0,0.00044383,42]
[327577384,1716240663224,-500.0,0.00044383,42]
[327577385,1716240663236,-500.0,0.00044383,42]
[327577386,1716240663246,-500.0,0.00044383,42]
[327577387,1716240663255,-500.0,0.00044383,42]
[327577388,1716240663265,-500.0,0.00044383,42]
[327577389,1716240663278,-547.67,0.00044383,42]
[327577390,1716240663289,-500.0,0.00044383,42]
[327577391,1716240663299,-500.0,0.00044383,42]
[327577392,1716240663310,-546.69284487,0.00044383,42]
[327577393,1716240663320,-500.0,0.00044383,42]
[327577394,1716240663329,-500.0,0.00044383,42]
[327577395,1716240663338,-500.0,0.00044383,42]
[327577396,1716240663349,-500.0,0.00044383,42]
[327577397,1716240663359,-500.0,0.00044383,42]
[327577398,1716240663369,-500.0,0.00044383,42]
[327577399,1716240663379,-500.0,0.00044383,2]
[327577400,1716240663389,-506.72000574,0.00044383,42]
[327577401,1716240663398,-500.0,0.00044383,42]
[327577402,1716240663408,-500.0,0.00044383,20]
[327577403,1716240663418,-500.0,0.00044383,42]
[327577404,1716240663427,-500.0,0.00044383,42]
[327577405,1716240663436,-500.0,0.00044383,42]
[327577406,1716240663447,-510.30411455,0.00044383,42]
[327577407,1716240663456,-1383.23,0.00044383,42]
[327577408,1716240663465,-540.8,0.00044383,42]
[327577409,1716240663475,-500.0,0.00044383,42]
[327577410,1716240663486,-500.0,0.00044383,42]
[327577411,1716240663495,-984.12,0.00044383,42]
[327577412,1716240663505,-862.78,0.00044383,42]
[327577413,1716240663515,-500.0,0.00044383,42]
[327577414,1716240663524,-933.51,0.00044383,42]
[327577415,1716240663533,-500.0,0.00044383,42]
[327577416,1716240663543,-500.0,0.00044383,42]
[327577417,1716240663552,-608.54,0.00044383,42]
[327577418,1716240663562,-500.0,0.00044383,42]
[327577419,1716240663571,-456.528659,0.00044383,42]
[327577420,1716240663581,-500.0,0.00044383,42]
[327577421,1716240663590,-500.0,0.00044383,42]
[327577422,1716240663599,-1427.37,0.00044383,42]
[327577423,1716240663609,-500.0,0.00044383,2]
[327577424,1716240663618,-174.90308051,0.00044383,42]
[327577425,1716240663627,-500.0,0.00044383,42]
[327577426,1716240663637,-500.0,0.00044383,42]
[327577427,1716240663646,-500.0,0.00044383,42]
[327577428,1716240663655,-500.0,0.00044383,42]
[327577429,1716240663664,-500.0,0.00044383,42]
[327577430,1716240663673,-548.13,0.00044383,42]
[327577431,1716240663682,-1000.0,0.00044383,42]
[327577432,1716240663692,-500.0,0.00044383,42]
[327577433,1716240663702,-266.81960476,0.00044383,42]
[327577434,1716240663711,-1304.97,0.00044383,42]
[327577435,1716240663720,-228.619611,0.00044383,7]
[327577436,1716240663732,-228.619611,0.00044383,7]
[327577437,1716240663742,-228.619611,0.00044383,7]
[327577438,1716240663751,-228.619611,0.00044383,7]
[327577439,1716240663760,-500.0,0.00044383,42]
[327577440,1716240663769,-500.0,0.00044383,42]
[327577441,1716240663778,-500.0,0.00044383,42]
[327577442,1716240663856,-962.09,0.00044383,42]
[327577443,1716240663872,-930.82,0.00044383,42]
[327577444,1716240663881,-351.65509789,0.00044383,42]
[327577445,1716240663891,-500.0,0.00044383,42]
[327577446,1716240663900,-853.67,0.00044383,42]
[327577447,1716240663909,-500.0,0.00044383,42]
[327577448,1716240663919,-500.0,0.00044383,42]
[327577449,1716240663928,-500.0,0.00044383,42]
[327577450,1716240663937,-300.0,0.00044383,7]
[327577451,1716240663947,-500.0,0.00044383,42]
[327577452,1716240663956,-500.0,0.00044383,42]
[327577453,1716240663966,-483.38219986,0.00044383,42]
[327577454,1716240663975,-500.0,0.00044383,42]
[327577455,1716240663986,-500.0,0.00044383,42]
[327577456,1716240663996,-510.16,0.00044383,42]
[327577457,1716240664005,-500.0,0.00044383,42]
[327577458,1716240664014,-500.0,0.00044383,42]
[327577459,1716240664024,-500.0,0.00044383,42]
[327577460,1716240664034,-612.12,0.00044383,42]
[327577461,1716240664044,-500.0,0.00044383,42]
[327577462,1716240664053,-500.0,0.00044383,42]
[327577463,1716240664063,-500.0,0.00044383,42]
[327577464,1716240664072,-500.0,0.00044383,42]
[327577465,1716240664082,-500.0,0.00044383,42]
[327577466,1716240664092,-500.0,0.00044383,42]
[327577467,1716240664101,-500.0,0.00044383,42]
[327577468,1716240664110,-500.0,0.00044383,42]
[327577469,1716240664120,-914.01,0.00044383,42]
[327577470,1716240664129,-500.0,0.00044383,42]
[327577471,1716240664138,-500.0,0.00044383,42]
[327577472,1716240664147,-1265.89,0.00044383,42]
[327577473,1716240664156,-500.0,0.00044383,2]
[327577474,1716240664165,-529.11,0.00044383,30]
[327577475,1716240664175,-500.0,0.00044383,42]
[327577476,1716240664184,-507.19,0.00044383,42]
[327577477,1716240664193,-630.91535431,0.00044383,42]
[327577478,1716240664202,-500.0,0.00044383,42]
[327577479,1716240664212,-500.0,0.00044383,42]
[327577480,1716240664221,-1125.93,0.00044383,42]
[327577481,1716240664232,-707.81,0.00044383,42]
[327577482,1716240664242,-1093.58,0.00044383,42]
[327577483,1716240664251,-500.0,0.00044383,42]
[327577484,1716240664263,-829.57,0.00044383,42]
[327577485,1716240664276,-500.0,0.00044383,42]
[327577486,1716240664288,-180.03745866,0.00044383,42]
[327577487,1716240664297,-1043.2,0.00044383,42]
[327577488,1716240664311,-543.82,0.00044383,42]
[327577489,1716240664330,-500.0,0.00044383,42]
[327577490,1716240664340,-500.0,0.00044383,42]
[327577491,1716240664351,-500.0,0.00044383,42]
[327577492,1716240664361,-500.0,0.00044383,42]
[327577493,1716240664370,-1863.04,0.00044383,42]
[327577494,1716240664379,-577.27,0.00044383,42]
[327577495,1716240664388,-427.30417147,0.00044383,42]
[327577496,1716240664397,-500.0,0.00044383,42]
[327577497,1716240664406,-500.0,0.00044383,42]
[327577498,1716240664415,-569.8,0.00044383,42]
[327577499,1716240664425,-501.10862395,0.00044383,42]
[327577500,1716240664435,-500.0,0.00044383,42]
[327577501,1716240664444,-500.0,0.00044383,42]
[327577502,1716240664459,-560.63,0.00044383,42]
[327577503,1716240664476,-500.0,0.00044383,42]
[327577504,1716240664494,-500.0,0.00044383,42]
[327577505,1716240664513,-500.0,0.00044383,42]
[327577506,1716240664532,-500.0,0.00044383,42]
[327577507,1716240664549,-500.0,0.00044383,42]
[327577508,1716240664566,-500.0,0.00044383,42]
[327577509,1716240664582,-1000.0,0.00044383,42]
[327577510,1716240664597,-636.49,0.00044383,42]
[327577511,1716240664614,-400.39596987,0.00044383,42]
[327577512,1716240664632,-523.47,0.00044383,42]
[327577513,1716240664650,-500.0,0.00044383,42]
[327577514,1716240664662,-646.34,0.00044383,42]
[327577515,1716240664680,-500.0,0.00044383,7]
[327577516,1716240664695,-500.0,0.00044383,42]
[327577517,1716240664711,-665.5,0.00044383,42]
[327577518,1716240664724,-161.54493261,0.00044383,42]
[327577519,1716240664744,-500.0,0.00044383,42]
[327577520,1716240664758,-500.0,0.00044383,42]
[327577521,1716240664773,-1419.89,0.00044383,42]
[327577522,1716240664788,-500.0,0.00044383,42]
[327577523,1716240664803,-500.0,0.00044383,42]
[327577524,1716240664818,-500.0,0.00044383,30]
[327577525,1716240664833,-500.0,0.00044383,42]
[327577526,1716240664848,-963.59,0.00044383,42]
[327577527,1716240664863,-500.0,0.00044383,42]
[327577528,1716240664879,-500.0,0.00044383,42]
[327577529,1716240664894,-500.0,0.00044383,42]
[327577530,1716240664908,-500.0,0.00044383,42]
[327577531,1716240664921,-500.0,0.00044383,42]
[327577532,1716240664936,-355.96223959,0.00044383,42]
[327577533,1716240664950,-1142.17,0.00044383,42]
[327577534,1716240664964,-889.89,0.00044383,42]
[327577535,1716240664978,-500.0,0.00044383,42]
[327577536,1716240664993,-1140.28,0.00044383,42]
[327577537,1716240665007,-500.0,0.00044383,42]
[327577538,1716240665023,-500.0,0.00044383,42]
[327577539,1716240665037,-500.0,0.00044383,42]
[327577540,1716240665050,-500.0,0.00044383,42]
[327577541,1716240665064,-170.2940466,0.00044383,42]
[327577542,1716240665079,-500.0,0.00044383,42]
[327577543,1716240665092,-500.0,0.00044383,42]
[327577544,1716240665107,-500.0,0.00044383,42]
[327577545,1716240665120,-437.7929397,0.00044383,42]
[327577546,1716240665134,-1116.75,0.00044383,42]
[327577547,1716240665148,-835.02,0.00044383,42]
[327577548,1716240665162,-500.0,0.00044383,42]
[327577549,1716240665177,-500.0,0.00044383,42]
[327577550,1716240665191,-1572.39,0.00044383,42]
[327577551,1716240665205,-576.07,0.00044383,42]
[327577552,1716240665218,-500.0,0.00044383,42]
[327577553,1716240665234,-500.0,0.00044383,42]
[327577554,1716240665248,-688.19,0.00044383,42]
[327577555,1716240665264,-279.99427953,0.00044383,42]
[327577556,1716240665281,-500.0,0.00044383,42]
[327577557,1716240665295,-1386.51,0.00044383,42]
[327577558,1716240665312,-801.39,0.00044383,42]
[327577559,1716240665326,-549.75,0.00044383,42]
[327577560,1716240665340,-500.0,0.00044383,42]
[327577561,1716240665355,-920.41,0.00044383,42]
[327577562,1716240665370,-500.0,0.00044383,42]
[327577563,1716240665384,-500.0,0.00044383,42]
[327577564,1716240665504,-500.0,0.00044383,42]
[327577565,1716240665514,-500.0,0.00044383,42]
[327577566,1716240665523,-506.15,0.00044383,42]
[327577567,1716240665533,-500.0,0.00044383,42]
[327577568,1716240665542,-500.0,0.00044383,42]
[327577569,1716240665552,-500.0,0.00044383,42]
[327577570,1716240665562,-500.0,0.00044383,42]
[327577571,1716240665572,-563.67,0.00044383,42]
[327577572,1716240665581,-1461.91,0.00044383,42]
[327577573,1716240665591,-500.0,0.00044383,42]
[327577574,1716240665602,-1034.96,0.00044383,42]
[327577575,1716240665611,-500.0,0.00044383,14]
[327577576,1716240665621,-557.23,0.00044383,42]
[327577577,1716240665631,-500.0,0.00044383,42]
[327577578,1716240665640,-500.0,0.00044383,42]
[327577579,1716240665650,-627.48232244,0.00044383,42]
[327577580,1716240665659,-500.0,0.00044383,42]
[327577581,1716240665669,-500.0,0.00044383,42]
[327577582,1716240665678,-500.0,0.00044383,42]
[327577583,1716240665687,-865.01,0.00044383,42]
[327577584,1716240665696,-500.0,0.00044383,42]
[327577585,1716240665706,-500.0,0.00044383,42]
[327577586,1716240665716,-511.09092928,0.00044383,42]
[327577587,1716240665725,-500.0,0.00044383,42]
[327577588,1716240665736,-173.3454633,0.00044383,42]
[327577589,1716240665745,-500.0,0.00044383,42]
[327577590,1716240665755,-500.0,0.00044383,42]
[327577591,1716240665765,-500.0,0.00044383,42]
[327577592,1716240665775,-772.62,0.00044383,42]
[327577593,1716240665785,-505.32,0.00044383,42]
[327577594,1716240665794,-500.0,0.00044383,42]
[327577595,1716240665804,-500.0,0.00044383,42]
[327577596,1716240665813,-500.0,0.00044383,42]
[327577597,1716240665822,-500.0,0.00044383,42]
[327577598,1716240665832,-519.53166823,0.00044383,42]
[327577599,1716240665841,-618.3,0.00044383,42]
[327577600,1716240665850,-943.29,0.00044383,42]
[327577601,1716240665859,-284.46816367,0.00044383,42]
[327577602,1716240665868,-500.0,0.00044383,42]
[327577603,1716240665878,-1002.8,0.00044383,42]
[327577604,1716240665887,-500.0,0.00044383,42]
[327577605,1716240665897,-551.78,0.00044383,42]
[327577606,1716240665906,-500.0,0.00044383,42]
[327577607,1716240665915,-710.52,0.00044383,42]
[327577608,1716240665925,-500.0,0.00044383,42]
[327577609,1716240665934,-500.0,0.00044383,42]
[327577610,1716240665943,-500.0,0.00044383,42]
[327577611,1716240665952,-500.0,0.00044383,42]
[327577612,1716240665961,-500.0,0.00044383,42]
[327577613,1716240665972,-500.0,0.00044383,42]
[327577614,1716240665984,-500.0,0.00044383,42]
[327577615,1716240665993,-500.0,0.00044383,42]
[327577616,1716240666002,-712.28,0.00044383,42]
[327577617,1716240666011,-500.0,0.00044383,42]
[327577618,1716240666021,-500.0,0.00044383,42]
[327577619,1716240666031,-500.0,0.00044383,42]
[327577620,1716240666040,-526.93,0.00044383,42]
[327577621,1716240666050,-326.53011651,0.00044383,42]
[327577622,1716240666059,-791.56,0.00044383,42]
[327577623,1716240666069,-2512.77,0.00044383,42]
[327577624,1716240666078,-517.26,0.00044383,42]
[327577625,1716240666089,-500.0,0.00044383,42]
[327577626,1716240666099,-713.03,0.00044383,42]
[327577627,1716240666109,-500.0,0.00044383,42]
[327577628,1716240666118,-500.0,0.00044383,42]
[327577629,1716240666128,-626.58,0.00044383,42]
[327577630,1716240666137,-500.0,0.00044383,42]
[327577631,1716240666147,-500.0,0.00044383,42]
[327577632,1716240666156,-500.0,0.00044383,42]
[327577633,1716240666166,-725.64,0.00044383,42]
[327577634,1716240666176,-500.0,0.00044383,42]
[327577635,1716240666186,-1122.74,0.00044383,42]
[327577636,1716240666195,-500.0,0.00044383,42]
[327577637,1716240666205,-1640.09,0.00044383,42]
[327577638,1716240666214,-500.0,0.00044383,42]
[327577639,1716240666225,-500.0,0.00044383,42]
[327577640,1716240666235,-500.0,0.00044383,42]
[327577641,1716240666245,-956.06,0.00044383,42]
[327577642,1716240666254,-500.0,0.00044383,42]
[327577643,1716240666264,-500.0,0.00044383,42]
[327577644,1716240666274,-500.0,0.00044383,42]
[327577645,1716240666287,-500.0,0.00044383,42]
[327577646,1716240666297,-1011.91,0.00044383,42]
[327577647,1716240666307,-609.34,0.00044383,42]
[327577648,1716240666316,-183.50233394,0.00044383,42]
[327577649,1716240666326,-500.0,0.00044383,42]
[327577650,1716240666336,-833.35,0.00044383,42]
[327577651,1716240666345,-500.0,0.00044383,42]
[327577652,1716240666357,-500.0,0.00044383,42]
[327577653,1716240666367,-2988.48,0.00044383,42]
[327577654,1716240666377,-849.37,0.00044383,42]
[327577655,1716240666387,-4869.7,0.00044383,42]
[327577656,1716240666396,-500.0,0.00044383,42]
[327577657,1716240666405,-1558.14,0.00044383,42]
[327577658,1716240666415,-500.0,0.00044383,42]
[327577659,1716240666424,-1571.02,0.00044383,42]
[327577660,1716240666434,-500.0,0.00044383,42]
[327577661,1716240666443,-500.0,0.00044383,42]
[327577662,1716240666453,-601.93,0.00044383,42]
[327577663,1716240666462,-500.0,0.00044383,42]
[327577664,1716240666472,-3429.26,0.00044383,42]
[327577665,1716240666483,-501.15719237,0.00044383,42]
[327577666,1716240666494,-500.0,0.00044383,42]
[327577667,1716240666503,-500.0,0.00044383,42]
[327577668,1716240666513,-546.88841997,0.00044383,42]
[327577669,1716240666522,-500.0,0.00044383,42]
[327577670,1716240666531,-3083.38,0.00044383,42]
[327577671,1716240666541,-500.0,0.00044383,42]
[327577672,1716240666551,-500.0,0.00044383,42]
[327577673,1716240666560,-534.47,0.00044383,120]
[327577674,1716240666570,-500.0,0.00044383,42]
[327577675,1716240666580,-2015.88,0.00044383,42]
[327577676,1716240666590,-718.21,0.00044383,42]
[327577677,1716240666600,-899.6,0.00044383,42]
[327577678,1716240666610,-500.0,0.00044383,42]
[327577679,1716240666620,-999.34,0.00044383,42]
[327577680,1716240666629,-500.0,0.00044383,42]
[327577681,1716240666639,-1006.46,0.00044383,42]
[327577682,1716240666649,-500.0,0.00044383,42]
[327577683,1716240666658,-500.0,0.00044383,42]
[327577684,1716240666668,-500.0,0.00044383,42]
[327577685,1716240666678,-1070.3,0.00044383,42]
[327577686,1716240666687,-5053.09,0.00044383,42]
[327577687,1716240666697,-502.50861249,0.00044383,42]
[327577688,1716240666706,-999.69,0.00044383,42]
[327577689,1716240666715,-500.0,0.00044383,42]
[327577690,1716240666725,-6152.09,0.00044383,42]
[327577691,1716240666736,-730.92,0.00044383,42]
[327577692,1716240666745,-500.0,0.00044383,42]
[327577693,1716240666754,-500.0,0.00044383,42]
[327577694,1716240666763,-500.0,0.00044383,42]
[327577695,1716240666772,-500.0,0.00044383,42]
[327577696,1716240666782,-423.1140951,0.00044383,42]
[327577697,1716240666791,-500.0,0.00044383,42]
[327577698,1716240666801,-500.0,0.00044383,42]
[327577699,1716240666810,-500.0,0.00044383,42]
[327577700,1716240666820,-500.0,0.00044383,42]
[327577701,1716240666829,-1001.74,0.00044383,42]
[327577702,1716240666839,-500.0,0.00044383,42]
[327577703,1716240666848,-513.53,0.00044383,42]
[327577704,1716240666858,-500.0,0.00044383,42]
[327577705,1716240666867,-500.0,0.00044383,42]
[327577706,1716240666876,-500.0,0.00044383,42]
[327577707,1716240666885,-500.0,0.00044383,42]
[327577708,1716240666894,-500.0,0.00044383,42]
[327577709,1716240666903,-500.0,0.00044383,42]
[327577710,1716240666911,-500.0,0.00044383,42]
[327577711,1716240666920,-666.63,0.00044383,42]
[327577712,1716240666930,-734.2,0.00044383,42]
[327577713,1716240666939,-661.66,0.00044383,42]
[327577714,1716240667030,-500.0,0.00044383,42]
[327577715,1716240667039,-500.0,0.00044383,2]
[327577716,1716240667049,-614.61,0.00044383,42]
[327577717,1716240667058,-500.0,0.00044383,42]
[327577718,1716240667067,-7926.58,0.00044383,42]
[327577719,1716240667077,-1224.22,0.00044383,42]
[327577720,1716240667086,-500.0,0.00044383,42]
[327577721,1716240667095,-6587.98,0.00044383,42]
[327577722,1716240667104,-500.0,0.00044383,42]
[327577723,1716240667114,-500.0,0.00044383,42]
[327577724,1716240667123,-500.0,0.00044383,42]
[327577725,1716240667133,-845.16,0.00044383,42]
[327577726,1716240667142,-500.0,0.00044383,42]
[327577727,1716240667151,-500.0,0.00044383,42]
[327577728,1716240667160,-1278.34,0.00044383,42]
[327577729,1716240667169,-500.0,0.00044383,42]
[327577730,1716240667178,-192.32190332,0.00044383,42]
[327577731,1716240667188,-811.1,0.00044383,42]
[327577732,1716240667197,-520.57,0.00044383,42]
[327577733,1716240667207,-1527.29,0.00044383,42]
[327577734,1716240667217,-928.24,0.00044383,42]
[327577735,1716240667226,-500.0,0.00044383,42]
[327577736,1716240667237,-500.0,0.00044383,42]
[327577737,1716240667246,-6561.19,0.00044383,21]
[327577738,1716240667256,-500.0,0.00044383,42]
[327577739,1716240667267,-720.03,0.00044383,42]
[327577740,1716240667276,-1676.49,0.00044383,42]
[327577741,1716240667289,-875.64,0.00044383,42]
[327577742,1716240667299,-500.0,0.00044383,60]
[327577743,1716240667308,-500.0,0.00044383,42]
[327577744,1716240667319,-703.74,0.00044383,42]
[327577745,1716240667328,-500.0,0.00044383,42]
[327577746,1716240667337,-151.0,0.00044383,7]
[327577747,1716240667346,-151.0,0.00044383,7]
[327577748,1716240667355,-842.75,0.00044383,42]
[327577749,1716240667365,-1255.87,0.00044383,42]
[327577750,1716240667374,-598.9,0.00044383,42]
[327577751,1716240667383,-500.0,0.00044383,42]
[327577752,1716240667392,-500.0,0.00044383,42]
[327577753,1716240667402,-1155.03,0.00044383,7]
[327577754,1716240667411,-1245.12,0.00044383,2]
[327577755,1716240667420,-2751.58,0.00044383,42]
[327577756,1716240667430,-500.0,0.00044383,42]
[327577757,1716240667440,-533.40713,0.00044383,7]
[327577758,1716240667449,-533.40713,0.00044383,7]
[327577759,1716240667459,-500.0,0.00044383,42]
[327577760,1716240667469,-500.0,0.00044383,42]
[327577761,1716240667480,-533.40713,0.00044383,7]
[327577762,1716240667491,-533.40713,0.00044383,7]
[327577763,1716240667500,-500.0,0.00044383,42]
[327577764,1716240667510,-4714.06,0.00044383,42]
[327577765,1716240667520,-500.0,0.00044383,42]
[327577766,1716240667530,-681.59,0.00044383,42]
[327577767,1716240667539,-500.0,0.00044383,42]
[327577768,1716240667549,-1361.44,0.00044383,42]
[327577769,1716240667559,-500.0,0.00044383,42]
[327577770,1716240667568,-500.0,0.00044383,42]
[327577771,1716240667577,-539.15,0.00044383,42]
[327577772,1716240667587,-935.38,0.00044383,42]
[327577773,1716240667596,-500.0,0.00044383,42]
[327577774,1716240667605,-2056.06,0.00044383,42]
[327577775,1716240667614,-531.38,0.00044383,42]
[327577776,1716240667624,-500.0,0.00044383,42]
[327577777,1716240667633,-500.0,0.00044383,42]
[327577778,1716240667642,-500.0,0.00044383,42]
[327577779,1716240667651,-500.0,0.00044383,42]
[327577780,1716240667661,-500.0,0.00044383,42]
[327577781,1716240667670,-500.0,0.00044383,42]